bitfinex/quotes_ETHUSD_20230110
["timestamp","ask_amount","ask_price","bid_price","bid_amount"]
[1673318399752,4.91211198,1318.9,1318.7,8.3842686]
[1673318399964,4.91211198,1318.9,1318.7,0.8011086]
[1673318400174,4.91211198,1318.9,1318.7,8.3183186]
[1673318400438,6.58378899,1318.9,1318.7,8.3843186]
[1673318400596,6.64978899,1318.9,1318.7,15.9675386]
[1673318400810,6.64978899,1318.9,1318.7,8.3843186]
[1673318401576,6.64978899,1318.9,1318.7,15.9675386]
[1673318401892,6.64978899,1318.9,1318.7,0.8011086]
[1673318402105,14.23192899,1318.9,1318.7,0.7351086]
[1673318402699,6.64978899,1318.9,1318.7,0.7351086]
[1673318403024,10.43420835,1318.9,1318.7,0.7351086]
[1673318403235,2.85212835,1318.9,1318.7,0.7351086]
[1673318403464,2.78612835,1318.9,1318.7,0.7351086]
[1673318405324,1.11445134,1318.9,1318.7,0.7351086]
[1673318405800,2.78612835,1318.9,1318.7,0.7351086]
[1673318405953,2.78612835,1318.9,1318.7,15.9013986]
[1673318405954,1.11445134,1318.9,1318.7,15.9013986]
[1673318406164,1.11445134,1318.9,1318.7,10.93862872]
[1673318406430,1.11445134,1318.8,1318.7,0.8011086]
[1673318406589,1.11445134,1318.8,1318.7,0.7351086]
[1673318407665,8.69710134,1318.8,1318.5,15.17704837]
[1673318407841,1.18045134,1318.8,1318.6,1.698]
[1673318408055,1.11445134,1318.8,1318.6,1.698]
[1673318409334,1.11445134,1318.8,1318.6,24.44935]
[1673318409547,1.11445134,1318.8,1318.6,24.51535]
[1673318409788,1.11445134,1318.8,1318.6,16.93155]
[1673318410614,1.11445134,1318.8,1318.6,9.34775]
[1673318410992,1.11445134,1318.8,1318.6,1.764]
[1673318411208,1.11445134,1318.8,1318.6,1.698]
[1673318411475,1.11445134,1318.8,1318.6,9.28173]
[1673318411677,2.76053151,1318.8,1318.6,1.764]
[1673318411997,1.11445134,1318.7,1318.5,1.777]
[1673318412235,10.36936835,1318.7,1318.5,1.711]
[1673318412365,10.43536835,1318.7,1318.5,1.711]
[1673318412694,1.11445134,1318.6,1318.4,18.6933]
[1673318412906,8.69829134,1318.6,1318.4,1.777]
[1673318413118,8.76429134,1318.6,1318.4,1.711]
[1673318413466,8.76429134,1318.6,1318.4,9.29587]
[1673318413467,1.18045134,1318.6,1318.4,9.29587]
[1673318413680,1.11445134,1318.5,1318.4,1.777]
[1673318414002,1.11445134,1318.5,1318.4,1.711]
[1673318414216,2.78612835,1318.5,1318.4,1.711]
[1673318414425,2.78612835,1318.5,1318.3,1.711]
[1673318414426,29.33689899,1318.5,1318.3,1.711]
[1673318414747,14.23415899,1318.5,1318.3,1.711]
[1673318414907,16.88886316,1318.5,1318.3,1.711]
[1673318415118,7.58552,1318.3,1318.2,0.36495718]
[1673318415348,7.58552,1318.3,1318.2,0.29895718]
[1673318415349,12.57246686,1318.3,1318.2,0.29895718]
[1673318415566,4.98689498,1318.3,1318.2,0.29895718]
[1673318415755,30.14149568,1318.3,1318.2,0.29895718]
[1673318415966,15.03645568,1318.3,1318.2,0.29895718]
[1673318416178,22.62197568,1318.3,1318.2,0.29895718]
[1673318416389,24.88807568,1318.3,1318.2,0.29895718]
[1673318416601,30.6891822,1318.3,1318.2,0.29895718]
[1673318416845,42.7714631,1318.3,1318.2,0.29895718]
[1673318416997,42.23998261,1318.3,1318.2,0.23085106]
[1673318417642,46.76998261,1318.3,1318.2,0.23085106]
[1673318418003,46.77890836,1318.3,1318.2,0.23085106]
[1673318418530,46.77890836,1318.3,1318.2,0.00085106]
[1673318418531,43.3981611,1318.3,1318.2,0.00085106]
[1673318418717,41.155016,1318.3,1318.2,0.00085106]
[1673318418926,43.78310719,1318.3,1318.2,0.00085106]
[1673318419101,43.78527356,1318.3,1318.2,0.00085106]
[1673318419317,43.78527356,1318.3,1318.1,0.30624155]
[1673318419318,45.11253554,1318.3,1318.1,0.30509261]
[1673318419522,16.24215566,1318.2,1318.1,0.30509261]
[1673318419735,49.67871173,1318.2,1317.9,0.31044777]
[1673318419987,42.59425327,1318.0,1317.9,0.26044777]
[1673318420164,49.62038777,1318.0,1317.9,0.26044777]
[1673318420376,49.62038777,1318.0,1317.9,7.77e-06]
[1673318420377,47.93945327,1318.0,1317.9,7.77e-06]
[1673318420587,64.86841831,1318.0,1317.9,7.77e-06]
[1673318420810,0.25999223,1317.9,1317.7,0.33172627]
[1673318421053,4.36696064,1317.8,1317.7,0.33172627]
[1673318421238,2.32599223,1317.9,1317.7,1.56172627]
[1673318421412,2.25999223,1317.9,1317.7,1.56172627]
[1673318421621,0.066,1318.1,1317.7,17.30908627]
[1673318421835,9.96500278,1318.2,1317.9,15.17542]
[1673318421836,9.0747,1318.2,1317.9,15.17542]
[1673318422092,9.0747,1318.2,1317.9,22.82913]
[1673318422253,3.79766064,1318.1,1317.9,0.066]
[1673318422462,3.79766064,1318.1,1317.8,7.7009]
[1673318422667,5.62866064,1318.0,1317.8,7.7009]
[1673318422877,3.79766064,1317.9,1317.8,7.7009]
[1673318423146,3.79766064,1317.9,1317.8,0.066]
[1673318423302,6.08705245,1317.9,1317.7,0.33172627]
[1673318423513,5.49466064,1317.8,1317.7,0.33172627]
[1673318423886,6.36366064,1317.8,1317.7,0.33172627]
[1673318424100,4.43296064,1317.8,1317.7,0.33172627]
[1673318424401,11.43651424,1317.9,1317.7,0.33172627]
[1673318424402,10.36081424,1317.9,1317.7,0.33172627]
[1673318424617,14.15847488,1317.9,1317.7,0.33172627]
[1673318425209,13.58900882,1317.9,1317.7,0.33172627]
[1673318425425,3.79766064,1317.8,1317.7,0.33172627]
[1673318425838,21.47446064,1317.8,1317.7,0.33172627]
[1673318426072,22.10976064,1317.8,1317.7,0.33172627]
[1673318426295,23.80876064,1317.8,1317.7,0.33172627]
[1673318426457,23.27566452,1317.8,1317.7,0.33172627]
[1673318426667,15.68726452,1317.8,1317.7,0.33163997]
[1673318426926,23.27566452,1317.8,1317.7,0.33163997]
[1673318427144,11.63196064,1317.8,1317.7,0.33163997]
[1673318427460,0.066,1317.8,1317.7,9.15061997]
[1673318427616,2.5,1317.8,1317.7,9.21661997]
[1673318427828,6.29766064,1317.8,1317.7,0.39763997]
[1673318428078,8.67353095,1317.8,1317.7,0.33163997]
[1673318429245,10.38453095,1317.8,1317.7,0.33163997]
[1673318429472,18.54223095,1317.8,1317.7,0.33163997]
[1673318429765,29.13063095,1317.8,1317.7,0.33163997]
[1673318430515,38.43003095,1317.8,1317.7,0.33163997]
[1673318431024,30.8505567,1317.8,1317.7,0.33163997]
[1673318431237,15.6737567,1317.8,1317.7,0.33163997]
[1673318431462,38.4389567,1317.8,1317.7,0.33163997]
[1673318431818,39.19383532,1317.8,1317.7,0.33163997]
[1673318432293,31.60543532,1317.8,1317.7,0.33163997]
[1673318432455,12.24283095,1317.8,1317.7,0.33163997]
[1673318432915,9.74283095,1317.8,1317.7,0.33163997]
[1673318433853,9.17353095,1317.8,1317.7,0.33163997]
[1673318434390,16.76193095,1317.8,1317.7,0.33163997]
[1673318434548,19.26193095,1317.8,1317.7,0.33163997]
[1673318434760,16.76193095,1317.8,1317.7,0.33163997]
[1673318434972,35.33773095,1317.8,1317.7,0.33163997]
[1673318435179,36.09260957,1317.8,1317.7,0.33163997]
[1673318435599,28.50420957,1317.8,1317.7,0.33163997]
[1673318436070,9.17353095,1317.8,1317.7,0.33163997]
[1673318436399,3.86366064,1317.8,1317.7,0.33163997]
[1673318436724,3.79766064,1317.8,1317.7,0.33163997]
[1673318438363,11.37214843,1317.9,1317.7,0.33163997]
[1673318438662,11.37214843,1317.9,1317.7,7.92061997]
[1673318438894,2.82814843,1317.9,1317.7,7.98661997]
[1673318439225,2.76214843,1317.9,1317.7,15.57559997]
[1673318440219,2.76214843,1317.9,1317.7,33.02003697]
[1673318440646,2.76214843,1317.9,1317.8,4.195]
[1673318440899,2.76214843,1317.9,1317.8,26.9602]
[1673318441114,2.81214843,1317.9,1317.8,27.0262]
[1673318442974,2.76214843,1317.9,1317.8,1.761]
[1673318443222,2.76214843,1317.9,1317.7,7.93624997]
[1673318443402,2.76214843,1317.9,1317.7,23.11362997]
[1673318443588,2.76214843,1317.9,1317.7,25.58982097]
[1673318443798,2.76214843,1317.9,1317.7,10.41244097]
[1673318444059,2.76214843,1317.9,1317.7,7.93624997]
[1673318444585,2.76214843,1317.9,1317.7,23.11420997]
[1673318446377,3.80658639,1317.8,1317.7,0.34763997]
[1673318446683,18.98338639,1317.8,1317.7,0.28163997]
[1673318446899,27.29465987,1317.8,1317.7,0.28163997]
[1673318447054,19.70625987,1317.8,1317.7,0.28163997]
[1673318447267,27.29465987,1317.8,1317.7,0.28163997]
[1673318448682,19.70625987,1317.8,1317.7,0.28163997]
[1673318448999,19.69733412,1317.8,1317.7,0.28163997]
[1673318449939,27.28573412,1317.8,1317.7,0.28163997]
[1673318450262,0.066,1317.8,1317.7,0.28163997]
[1673318450473,12.46504843,1317.9,1317.7,0.28163997]
[1673318450684,31.43881907,1317.9,1317.7,0.28163997]
[1673318451303,23.85060907,1317.9,1317.7,0.28163997]
[1673318451902,16.26270907,1317.9,1317.7,0.28163997]
[1673318452314,24.80055907,1317.9,1317.7,0.28163997]
[1673318452568,30.35552198,1317.9,1317.7,0.28163997]
[1673318453483,22.76767198,1317.9,1317.7,0.28163997]
[1673318453926,0.71836003,1317.7,1317.6,9.3533]
[1673318454118,3.77814843,1317.9,1317.7,2.5]
[1673318454347,3.71214843,1317.9,1317.8,16.8828]
[1673318454553,3.71214843,1317.9,1317.8,24.5372]
[1673318455200,3.01374843,1317.9,1317.8,29.7482]
[1673318455415,3.01374843,1317.9,1317.8,32.54054015]
[1673318455631,3.01374843,1317.9,1317.8,36.04054015]
[1673318455632,2.31544843,1317.9,1317.8,36.04054015]
[1673318455795,2.31544843,1317.9,1317.8,32.54054015]
[1673318456306,2.31544843,1317.9,1317.8,36.33820079]
[1673318456830,2.31544843,1317.9,1317.8,38.22100032]
[1673318457077,2.31544843,1317.9,1317.8,24.95214015]
[1673318457289,2.31544843,1317.9,1317.8,17.36374015]
[1673318457500,2.31544843,1317.9,1317.8,26.8175]
[1673318458772,2.31544843,1317.9,1317.8,26.2482]
[1673318459805,1.11692608,1318.1,1317.9,2.5]
[1673318460016,1.11692608,1318.2,1317.9,4.211]
[1673318460244,3.98031919,1318.3,1318.0,32.06]
[1673318460245,2.85831521,1318.3,1318.0,32.06]
[1673318460463,2.85831521,1318.3,1318.0,32.126]
[1673318460464,2.79231521,1318.3,1318.0,32.126]
[1673318460688,1.11692608,1318.3,1318.1,1.711]
[1673318460839,1.18292608,1318.4,1318.2,1.711]
[1673318461049,2.79766658,1318.5,1318.2,36.45626606]
[1673318461260,2.79766658,1318.5,1318.4,1.711]
[1673318461620,1.12227745,1318.5,1318.4,24.46585]
[1673318461936,1.12227745,1318.5,1318.4,24.53185]
[1673318462155,1.12227745,1318.5,1318.4,16.9469]
[1673318462313,0.00535137,1318.5,1318.4,11.815164]
[1673318463048,0.14435137,1318.5,1318.4,28.696064]
[1673318463505,0.14435137,1318.5,1318.4,32.49372464]
[1673318464043,0.14435137,1318.5,1318.4,21.111114]
[1673318464202,0.14435137,1318.5,1318.4,1.296]
[1673318464406,0.14435137,1318.5,1318.3,1.711]
[1673318464895,0.14435137,1318.5,1318.3,9.2965]
[1673318465060,0.14435137,1318.5,1318.3,9.3625]
[1673318465407,0.14435137,1318.5,1318.3,16.94802]
[1673318465618,0.14435137,1318.5,1318.3,19.71951761]
[1673318466511,0.14435137,1318.5,1318.3,0.066]
[1673318466739,0.14435137,1318.5,1318.2,1.711]
[1673318466740,8.84564745,1318.5,1318.2,1.711]
[1673318466977,8.91164745,1318.5,1318.1,24.52664]
[1673318467141,8.91164745,1318.5,1318.1,22.82475]
[1673318467142,0.00892575,1318.4,1318.1,22.82475]
[1673318467351,0.00892575,1318.4,1318.1,7.6521]
[1673318467352,7.59398575,1318.4,1318.1,7.6521]
[1673318467563,0.07492575,1318.4,1318.1,17.708022]
[1673318467768,0.00892575,1318.4,1318.1,25.294692]
[1673318468192,0.00892575,1318.4,1318.1,17.708022]
[1673318471200,0.00892575,1318.4,1318.1,15.23877]
[1673318472456,0.00892575,1318.4,1318.1,22.82544]
[1673318473025,5.12493809,1318.5,1318.1,22.82544]
[1673318473026,1.32727745,1318.5,1318.1,22.82544]
[1673318473342,0.14435137,1318.5,1318.1,24.53144]
[1673318474233,2.64435137,1318.5,1318.1,24.53144]
[1673318474469,0.14435137,1318.5,1318.1,27.97128]
[1673318477774,0.14435137,1318.5,1318.1,35.26894064]
[1673318478318,0.14435137,1318.5,1318.4,1.711]
[1673318478648,0.14435137,1318.5,1318.4,9.29595]
[1673318478861,0.14435137,1318.5,1318.4,1.777]
[1673318479072,0.14435137,1318.5,1318.4,1.711]
[1673318479417,0.14435137,1318.5,1318.4,7.58495]
[1673318479576,0.14435137,1318.5,1318.4,7.65095]
[1673318479980,0.14435137,1318.5,1318.4,0.066]
[1673318480226,0.14435137,1318.5,1318.3,7.65115]
[1673318480412,0.05,1318.4,1318.3,7.65115]
[1673318480605,0.05,1318.4,1318.3,9.933446]
[1673318481248,0.05,1318.4,1318.3,17.518966]
[1673318481616,0.05,1318.4,1318.3,9.933446]
[1673318481937,0.05,1318.4,1318.3,2.348296]
[1673318482148,0.05,1318.4,1318.2,22.82342]
[1673318482285,0.14435137,1318.5,1318.2,0.066]
[1673318482642,17.43615,1318.4,1318.1,0.066]
[1673318482851,9.91707,1318.4,1318.1,7.58665]
[1673318483044,9.91707,1318.4,1318.1,7.65265]
[1673318483254,13.6605442,1318.4,1318.1,7.65264]
[1673318483796,6.0755742,1318.4,1318.1,15.23931]
[1673318485030,8.5755742,1318.4,1318.1,15.23931]
[1673318485281,6.0755742,1318.4,1318.1,15.23931]
[1673318485605,0.6351,1318.4,1318.1,15.23931]
[1673318485767,0.5691,1318.4,1318.1,15.23931]
[1673318485980,0.5691,1318.4,1318.1,22.82598]
[1673318486707,0.5711,1318.4,1318.1,15.23731]
[1673318486972,0.5691,1318.4,1318.1,7.65264]
[1673318488126,15.73983,1318.4,1318.1,0.066]
[1673318488317,0.00892575,1318.3,1318.0,0.066]
[1673318488530,15.1722,1318.2,1317.9,9.3695]
[1673318488744,15.1722,1318.2,1317.9,0.066]
[1673318488745,22.8243,1318.2,1317.9,0.066]
[1673318488912,17.7382,1318.2,1317.8,8.1984]
[1673318489128,17.7382,1318.2,1317.8,8.19541178]
[1673318489129,0.00892575,1318.1,1317.8,8.19541178]
[1673318489378,0.00892575,1318.1,1317.8,0.066]
[1673318489698,0.00892575,1318.1,1317.7,25.0996]
[1673318489915,0.00892575,1318.1,1317.8,2.5]
[1673318490224,7.59579575,1318.1,1317.8,2.5]
[1673318490437,7.66179575,1318.1,1317.7,20.84993428]
[1673318490656,7.66179575,1318.1,1317.7,19.15269428]
[1673318491014,7.66179575,1318.1,1317.7,26.74167428]
[1673318491484,0.07492575,1318.1,1317.7,26.74167428]
[1673318491643,0.00892575,1318.1,1317.8,2.5]
[1673318491856,0.00892575,1318.1,1317.8,17.67613]
[1673318492098,0.00892575,1318.1,1317.8,25.33053]
[1673318492742,0.00892575,1318.1,1317.8,7.65437]
[1673318492743,1.12585183,1318.1,1317.8,7.65437]
[1673318492917,23.98460657,1318.1,1317.8,0.066]
[1673318493131,16.46336657,1318.1,1317.7,15.24352]
[1673318493444,16.46336657,1318.1,1317.7,22.83223]
[1673318493864,8.87643657,1318.1,1317.7,22.83223]
[1673318494742,8.87643657,1318.1,1317.7,7.65471]
[1673318494743,24.04995657,1318.1,1317.7,7.65471]
[1673318494934,16.46310657,1318.1,1317.7,15.24369]
[1673318495111,18.1384957,1318.1,1317.7,22.83267]
[1673318495572,8.87643657,1318.1,1317.7,27.10464391]
[1673318495969,8.87643657,1318.1,1317.8,2.5]
[1673318496160,19.01413657,1318.1,1317.8,17.67647]
[1673318496384,19.01413657,1318.1,1317.8,15.24237]
[1673318496584,19.01413657,1318.1,1317.8,22.83077]
[1673318497052,14.09954985,1318.1,1317.8,22.83077]
[1673318497275,10.21262575,1318.1,1317.8,22.83077]
[1673318500114,10.2037,1318.1,1317.8,22.83077]
[1673318500481,10.2037,1318.1,1317.8,24.54177]
[1673318500803,10.2037,1318.1,1318.0,22.76175]
[1673318501015,0.066,1318.1,1318.0,22.82575]
[1673318501233,9.86592608,1318.2,1318.0,25.360325]
[1673318501744,1.18292608,1318.2,1318.0,25.360325]
[1673318501956,1.11692608,1318.2,1318.0,25.360325]
[1673318503168,14.83311521,1318.3,1318.0,25.360325]
[1673318504361,1.11692608,1318.2,1318.0,25.360325]
[1673318504576,14.83311521,1318.3,1318.0,25.360325]
[1673318505043,14.90211521,1318.3,1318.0,25.360325]
[1673318505998,12.65762608,1318.3,1318.0,25.360325]
[1673318507891,11.5407,1318.3,1318.0,25.360325]
[1673318508498,12.65762608,1318.3,1318.0,25.360325]
[1673318509096,11.5407,1318.3,1318.0,25.360325]
[1673318509674,11.5407,1318.3,1318.1,1.711]
[1673318509830,0.135,1318.3,1318.2,32.8444]
[1673318510040,0.069,1318.3,1318.2,33.1404]
[1673318512176,0.069,1318.3,1318.2,36.6404]
[1673318512404,0.05,1318.4,1318.3,25.25656]
[1673318512560,0.05,1318.4,1318.3,31.04953391]
[1673318513245,0.00535137,1318.5,1318.4,25.25485]
[1673318513467,0.00535137,1318.5,1318.4,25.55085]
[1673318514033,1.37e-06,1318.5,1318.4,29.34851064]
[1673318515083,1.37e-06,1318.5,1318.4,35.28751064]
[1673318515294,0.00490919,1318.6,1318.4,60.09372053]
[1673318515520,0.00490919,1318.6,1318.5,33.06377064]
[1673318515729,0.00490919,1318.6,1318.5,36.12977064]
[1673318515988,0.00490919,1318.6,1318.5,20.03374]
[1673318516201,0.00490919,1318.6,1318.5,19.46474]
[1673318516450,0.00490919,1318.6,1318.5,30.10148831]
[1673318518915,0.00490919,1318.6,1318.5,33.89914895]
[1673318520542,0.00490919,1318.6,1318.5,35.12414895]
[1673318520927,0.00490919,1318.6,1318.5,31.32648831]
[1673318521146,0.00490919,1318.6,1318.5,30.10148831]
[1673318521351,0.00490919,1318.6,1318.5,14.93274831]
[1673318521567,0.00490919,1318.6,1318.5,30.10148831]
[1673318522173,6.64705124,1318.9,1318.5,30.10148831]
[1673318522385,4.97166211,1318.9,1318.5,30.10148831]
[1673318522649,4.90566211,1318.9,1318.5,30.10148831]
[1673318523451,4.91458786,1318.9,1318.5,30.10148831]
[1673318524188,4.91458786,1318.9,1318.5,31.47448831]
[1673318524596,1.65458786,1318.9,1318.5,31.47448831]
[1673318525747,1.65458786,1318.9,1318.5,23.89011831]
[1673318525972,11.4856807,1318.9,1318.5,22.51711831]
[1673318526182,11.5516807,1318.9,1318.5,15.23474]
[1673318526640,23.30916983,1318.9,1318.5,15.23474]
[1673318526871,23.30916983,1318.9,1318.5,7.65037]
[1673318527075,23.30916983,1318.9,1318.5,7.60037]
[1673318527295,28.34126983,1318.9,1318.5,7.60037]
[1673318527598,3.79766064,1318.8,1318.5,7.60037]
[1673318527814,7.58322,1318.7,1318.5,0.066]
[1673318527984,7.64922,1318.7,1318.4,7.65084]
[1673318528398,0.6349,1318.7,1318.4,15.23579]
[1673318528763,0.5689,1318.7,1318.4,15.23579]
[1673318529087,43.64326369,1318.8,1318.4,7.65084]
[1673318529228,15.16656,1318.7,1318.4,0.066]
[1673318529442,10.08397,1318.6,1318.3,9.4482]
[1673318529710,10.14997,1318.6,1318.3,0.066]
[1673318530020,10.94497,1318.6,1318.2,37.21004]
[1673318530177,10.94497,1318.6,1318.2,25.82344]
[1673318530723,18.52894,1318.6,1318.2,10.65176]
[1673318531072,18.52894,1318.6,1318.2,14.188863]
[1673318531243,18.53786575,1318.6,1318.2,14.188863]
[1673318531802,4.36666064,1318.5,1318.2,0.066]
[1673318531966,15.17882575,1318.4,1318.1,11.1606]
[1673318532277,15.24482575,1318.4,1318.1,11.1606]
[1673318532703,7.65987575,1318.4,1318.1,0.066]
[1673318532909,7.65987575,1318.4,1318.0,30.43585]
[1673318533170,7.65987575,1318.4,1318.0,34.879435]
[1673318533377,7.65987575,1318.4,1318.0,27.270335]
[1673318533693,22.82977575,1318.4,1318.0,4.509585]
[1673318533867,22.82977575,1318.4,1317.9,18.3474]
[1673318534082,22.82977575,1318.4,1317.9,25.93505]
[1673318534657,2.5,1318.3,1317.9,18.3474]
[1673318534804,32.10657575,1318.4,1317.9,18.3474]
[1673318535014,32.10657575,1318.4,1317.9,22.835685]
[1673318535231,35.90423639,1318.4,1317.9,30.423145]
[1673318535545,35.90423639,1318.4,1317.9,45.598785]
[1673318536958,35.90423639,1318.4,1317.9,38.010965]
[1673318538466,28.31928639,1318.4,1317.9,45.598785]
[1673318538817,39.0330206,1318.4,1317.9,38.010965]
[1673318539463,9.3428,1318.4,1318.0,7.28881527]
[1673318539639,0.066,1318.4,1318.1,4.86815463]
[1673318540014,11.8587,1318.5,1318.2,22.7583]
[1673318540015,11.9247,1318.5,1318.2,22.7583]
[1673318540316,11.9247,1318.5,1318.2,22.8243]
[1673318540626,11.9247,1318.5,1318.3,1.368]
[1673318540961,11.9247,1318.5,1318.3,19.0955]
[1673318541156,0.066,1318.5,1318.3,19.1615]
[1673318541315,10.31608128,1318.6,1318.3,19.1615]
[1673318542519,1.18608128,1318.6,1318.4,1.369]
[1673318542679,15.27717041,1318.7,1318.5,7.58437]
[1673318542885,15.27717041,1318.7,1318.5,16.60574]
[1673318543100,14.70827041,1318.7,1318.5,16.60574]
[1673318543568,2.86147041,1318.7,1318.5,24.19011]
[1673318543727,2.79547041,1318.7,1318.5,24.19011]
[1673318543938,2.79547041,1318.7,1318.5,27.78562522]
[1673318544832,2.79547041,1318.7,1318.5,12.61688522]
[1673318545218,1.12008128,1318.6,1318.5,12.61688522]
[1673318545775,1.12008128,1318.6,1318.5,9.02137]
[1673318548063,1.12008128,1318.6,1318.5,7.65037]
[1673318548426,2.79547041,1318.6,1318.5,0.066]
[1673318548633,2.79547041,1318.6,1318.4,8.95369]
[1673318548793,2.79547041,1318.6,1318.4,9.01969]
[1673318548996,1.12008128,1318.5,1318.4,0.066]
[1673318549211,8.70453128,1318.5,1318.3,0.066]
[1673318549454,10.44591041,1318.5,1318.2,20.30393]
[1673318549672,10.44591041,1318.5,1318.2,27.89003]
[1673318549673,1.18608128,1318.5,1318.2,27.89003]
[1673318549838,1.18608128,1318.5,1318.2,16.61603]
[1673318549839,1.12008128,1318.5,1318.2,16.61603]
[1673318550052,2.79547041,1318.5,1318.2,19.41602306]
[1673318550508,2.79547041,1318.5,1318.2,27.00212306]
[1673318550870,1.12008128,1318.5,1318.2,27.00212306]
[1673318551157,1.12008128,1318.5,1318.2,26.99866474]
[1673318551316,2.79547041,1318.5,1318.2,19.41256474]
[1673318551682,2.79547041,1318.5,1318.2,16.61257168]
[1673318551854,2.79547041,1318.5,1318.2,15.23803]
[1673318552064,1.12008128,1318.4,1318.2,15.23803]
[1673318552266,2.79547041,1318.5,1318.2,15.23803]
[1673318552691,3.36447041,1318.5,1318.2,15.23803]
[1673318553033,1.12008128,1318.5,1318.2,15.23803]
[1673318553263,2.79547041,1318.5,1318.2,15.23803]
[1673318553472,8.70452128,1318.5,1318.2,15.23803]
[1673318553782,1.18608128,1318.5,1318.2,15.23803]
[1673318553993,1.12008128,1318.5,1318.2,19.057153]
[1673318554382,8.70453128,1318.5,1318.2,11.471053]
[1673318554572,8.77053128,1318.5,1318.2,11.471053]
[1673318555209,1.18608128,1318.5,1318.2,11.471053]
[1673318555473,1.12008128,1318.5,1318.2,19.057153]
[1673318556844,12.29557041,1318.6,1318.3,1.374]
[1673318557052,12.29557041,1318.6,1318.4,22.75485]
[1673318557239,12.29557041,1318.6,1318.4,22.82085]
[1673318557449,11.72657041,1318.6,1318.4,22.82085]
[1673318557809,2.86147041,1318.6,1318.4,15.2359]
[1673318558101,2.79547041,1318.6,1318.4,15.2359]
[1673318558413,2.79547041,1318.6,1318.4,17.98434153]
[1673318558937,2.79547041,1318.6,1318.4,10.39939153]
[1673318559674,1.12008128,1318.6,1318.4,26.93829153]
[1673318559884,1.12008128,1318.6,1318.4,19.35334153]
[1673318560098,1.12008128,1318.6,1318.5,2.5]
[1673318560308,1.12008128,1318.6,1318.5,4.68533415]
[1673318560836,1.12008128,1318.6,1318.5,2.18533415]
[1673318561117,1.12008128,1318.6,1318.4,11.76838153]
[1673318561118,2.79547041,1318.6,1318.4,11.76838153]
[1673318561288,1.12008128,1318.5,1318.4,14.26835153]
[1673318561498,2.79547041,1318.6,1318.4,4.18344153]
[1673318561660,1.12008128,1318.5,1318.3,9.01896]
[1673318562023,1.12008128,1318.5,1318.3,0.066]
[1673318562178,1.12008128,1318.5,1318.2,23.434603]
[1673318562386,2.79547041,1318.5,1318.2,23.434683]
[1673318562601,1.12008128,1318.5,1318.2,31.020783]
[1673318562968,1.12008128,1318.5,1318.3,2.5]
[1673318563194,1.12008128,1318.5,1318.4,15.1699]
[1673318563332,1.12008128,1318.5,1318.4,7.65095]
[1673318563545,1.12008128,1318.5,1318.4,0.066]
[1673318563791,1.12008128,1318.5,1318.3,21.0885583]
[1673318565436,2.79547041,1318.5,1318.3,21.0885583]
[1673318565814,1.12008128,1318.4,1318.3,3.4180783]
[1673318565968,9.25984913,1318.5,1318.2,14.404803]
[1673318565969,2.86147041,1318.5,1318.2,22.056483]
[1673318566184,2.79547041,1318.5,1318.3,2.5]
[1673318566437,2.79547041,1318.5,1318.3,17.67104]
[1673318566603,2.79547041,1318.5,1318.3,17.73704]
[1673318566818,1.12008128,1318.5,1318.3,25.32256]
[1673318567067,1.12008128,1318.5,1318.3,29.4323963]
[1673318567407,1.12008128,1318.5,1318.3,33.23005694]
[1673318570391,11.70027041,1318.6,1318.3,33.23005694]
[1673318572273,1.12008128,1318.5,1318.3,33.23005694]
[1673318573544,11.70027041,1318.6,1318.3,34.60805694]
[1673318573758,11.70027041,1318.6,1318.3,34.6046052]
[1673318575145,1.12008128,1318.5,1318.3,30.73005694]
[1673318577753,1.01594028,1318.5,1318.3,30.73005694]
[1673318579465,10.58018913,1318.6,1318.3,34.92231515]
[1673318579680,0.066,1318.6,1318.5,1.377]
[1673318579895,1.67538913,1318.7,1318.5,35.52438027]
[1673318580048,1.67538913,1318.7,1318.5,33.70844792]
[1673318584931,1.67538913,1318.8,1318.6,34.10473443]
[1673318585944,25.04491919,1318.9,1318.6,34.10473443]
[1673318587367,1.74138913,1318.9,1318.7,5.16666064]
[1673318587528,3.98567056,1319.0,1318.8,34.12826064]
[1673318587729,1.67538913,1318.9,1318.8,22.81395]
[1673318587944,2.80020648,1318.9,1318.8,7.64865]
[1673318588153,1.12481735,1318.9,1318.8,7.64865]
[1673318588633,1.12481735,1318.9,1318.8,15.2313]
[1673318588945,2.80020648,1318.9,1318.8,15.2313]
[1673318589135,2.80020648,1318.9,1318.8,0.066]
[1673318589136,1.12481735,1318.9,1318.8,0.066]
[1673318589324,1.12481735,1318.9,1318.8,7.58265]
[1673318589516,1.12481735,1318.9,1318.8,7.64865]
[1673318589988,2.80020648,1318.9,1318.8,15.2313]
[1673318590165,1.12481735,1318.9,1318.8,22.81395]
[1673318591319,1.12481735,1318.9,1318.8,25.853629]
[1673318591805,2.80555785,1319.0,1318.8,25.853629]
[1673318592016,1.12481735,1318.9,1318.8,25.853629]
[1673318592337,2.80555785,1319.0,1318.8,25.853629]
[1673318593797,1.12481735,1318.9,1318.8,25.853629]
[1673318593954,2.80555785,1319.0,1318.8,25.853629]
[1673318595464,1.12481735,1318.9,1318.8,7.64865]
[1673318595656,1.12481735,1318.9,1318.8,15.2313]
[1673318595846,1.12481735,1318.9,1318.8,14.9813]
[1673318596333,1.12481735,1318.9,1318.8,22.56395]
[1673318596483,1.12481735,1318.9,1318.8,14.9813]
[1673318597072,1.12481735,1318.9,1318.8,22.56395]
[1673318598366,1.12481735,1318.9,1318.8,24.820345]
[1673318598577,2.80555785,1319.0,1318.8,24.820345]
[1673318599423,2.80555785,1319.0,1318.9,2.5]
[1673318599631,2.80555785,1319.0,1318.9,15.16414]
[1673318599886,2.80555785,1319.0,1318.9,17.73014]
[1673318600470,1.13016872,1319.0,1318.9,17.73014]
[1673318600681,1.13016872,1319.0,1318.9,28.0441285]
[1673318600891,0.00535137,1319.0,1318.9,28.0441285]
[1673318601781,0.00535137,1319.0,1318.9,31.0441285]
[1673318602297,0.00535137,1319.0,1318.9,34.84178914]
[1673318602508,0.00535137,1319.0,1318.9,48.84178914]
[1673318603323,1.37e-06,1319.0,1318.9,48.84178914]
[1673318603534,0.00535137,1319.1,1318.9,48.84178914]
[1673318603784,0.00535137,1319.1,1319.0,9.29766064]
[1673318603969,0.00535137,1319.1,1319.0,33.35610057]
[1673318605349,0.00535137,1319.1,1319.0,36.11210057]
[1673318605578,0.00535137,1319.2,1319.1,2.5]